[Event "WYCC U18 Open 2019"]
[Site "Mumbai"]
[Date "2019.10.09"]
[Round "8.16"]
[White "Aliyev, Ravan"]
[Black "Gaurav Rajesh Zagade"]
[Result "1-0"]
[ECO "A48"]
[WhiteElo "2341"]
[BlackElo "2053"]
[Annotator "ChessBase"]
[PlyCount "105"]
[EventDate "2019.10.02"]
[EventType "swiss"]
[EventCountry "IND"]
[SourceTitle "playchess.com"]
[Source "ChessBase"]
[SourceQuality "1"]
[TimeControl "40/5400+30:1800+30"]

1. d4 {[%emt 0:01:33]} Nf6 {[%emt 0:00:00]} 2. Nf3 {[%emt 0:00:05]} g6 {[%emt 0:00:00]} 3. Bf4 {[%emt 0:00:05]} Bg7 {[%emt 0:00:06]} 4. e3 {[%emt 0:00:07]} c5 {[%emt 0:00:13]} 5. c3 {[%emt 0:01:38]} b6 {[%emt 0:00:08]} 6. Be2 {[%emt 0:01:25]} Bb7 {[%emt 0:00:14]} 7. h3 {[%emt 0:00:33]} O-O {[%emt 0:00:25]} 8. O-O {[%emt 0:00:10]} d5 {[%emt 0:00:45]} 9. Nbd2 {[%emt 0:03:05]} Nc6 {[%emt 0:00:33]} 10. Bh2 {[%emt 0:01:16]} Nd7 {[%emt 0:06:39]} 11. Qb3 {[%emt 0:05:06]} e5 {[%emt 0:03:41]} 12. dxe5 {[%emt 0:02:11]} Ndxe5 {[%emt 0:00:59]} 13. Nxe5 {[%emt 0:03:38]} Nxe5 {[%emt 0:00:12]} 14. Nf3 {[%emt 0:02:06]} Nc6 {[%emt 0:09:19]} 15. Rfd1 {[%emt 0:03:52]} Qe7 {[%emt 0:01:44]} 16. Qa3 {[%emt 0:01:41]} Rad8 {[%emt 0:15:08]} 17. Rd2 {[%emt 0:01:29]} Rfe8 {[%emt 0:01:27]} 18. Rad1 {[%emt 0:01:21]} Qe6 {[%emt 0:15:53]} 19. Bg3 {[%emt 0:05:04]} d4 {[%emt 0:07:13]} 20. cxd4 {[%emt 0:07:39]} cxd4 {[%emt 0:00:12]} 21. exd4 {[%emt 0:01:15]} Nxd4 {[%emt 0:19:06]} 22. Nxd4 {[%emt 0:02:47]} Rxd4 {[%emt 0:02:16]} 23. Rxd4 {[%emt 0:03:52]} Bxd4 {[%emt 0:00:15]} 24. Bg4 {[%emt 0:19:54]} Qc4 {[%emt 0:02:49]} 25. Qxa7 {[%emt 0:02:27]} Bc6 {[%emt 0:04:40]} 26. Qc7 {[%emt 0:05:19]} Bc5 {[%emt 0:00:40]} 27. Kh2 {[%emt 0:05:25]} Qa4 {[%emt 0:03:19]} 28. b3 {[%emt 0:03:54]} Qa8 {[%emt 0:00:18]} 29. Bd7 {[%emt 0:00:16]} Bxd7 {[%emt 0:00:25]} 30. Rxd7 {[%emt 0:00:02]} Rf8 {[%emt 0:00:29]} 31. a4 {[%emt 0:00:56]} Qe4 {[%emt 0:01:10]} 32. a5 {[%emt 0:02:10]} h5 {[%emt 0:02:29]} 33. axb6 {[%emt 0:01:35]} Qb4 {[%emt 0:02:02]} 34. b7 {[%emt 0:03:36]} h4 {[%emt 0:00:06]} 35. Bd6 {[%emt 0:00:59]} Bxd6+ {[%emt 0:00:55]} 36. Qxd6 {[%emt 0:00:36]} Qxd6+ {[%emt 0:00:27]} 37. Rxd6 {[%emt 0:00:02]} Rb8 {[%emt 0:00:11]} 38. Rd7 {[%emt 0:00:47]} Kg7 {[%emt 0:00:17]} 39. Rc7 {[%emt 0:02:33]} Kf6 {[%emt 0:00:14]} 40. b4 {[%emt 0:01:50]} g5 {[%emt 0:01:55]} 41. Kg1 {[%emt 0:31:52]} Ke6 {[%emt 0:30:39]} 42. Kf1 {[%emt 0:00:09]} f5 {[%emt 0:00:32]} 43. Ke2 {[%emt 0:01:18]} Kd6 {[%emt 0:00:00]} 44. Rg7 {[%emt 0:00:00]} Ke5 {[%emt 0:00:00]} 45. Kd3 {[%emt 0:00:00]} Kf4 {[%emt 0:00:00]} 46. Kc4 {[%emt 0:00:00]} g4 {[%emt 0:00:00]} 47. Kb5 {[%emt 0:00:00]} gxh3 {[%emt 0:00:00]} 48. gxh3 {[%emt 0:00:00]} Kf3 {[%emt 0:00:00]} 49. Kb6 {[%emt 0:00:00]} Kxf2 {[%emt 0:00:00]} 50. Ka7 {[%emt 0:00:00]} Re8 {[%emt 0:00:00]} 51. b8=Q {[%emt 0:00:00]} Rxb8 {[%emt 0:00:00]} 52. Kxb8 {[%emt 0:00:00]} f4 {[%emt 0:00:00]} 53. Rg4 {[%emt 0:00:00]} 1-0

[Event "WYCC U18 Open 2019"]
[Site "Mumbai"]
[Date "2019.10.10"]
[Round "9.1"]
[White "Zarubitski, Viachaslau"]
[Black "Praggnanandhaa R"]
[Result "0-1"]
[ECO "B40"]
[WhiteElo "2435"]
[BlackElo "2567"]
[Annotator "ChessBase"]
[PlyCount "126"]
[EventDate "2019.10.02"]
[EventType "swiss"]
[EventCountry "IND"]
[SourceTitle "playchess.com"]
[Source "ChessBase"]
[SourceQuality "1"]
[TimeControl "40/5400+30:1800+30"]

1. e4 {[%emt 0:00:02]} c5 {[%emt 0:00:06]} 2. Nf3 {[%emt 0:00:19]} e6 {[%emt 0:00:08]} 3. c3 {[%emt 0:00:48]} Nf6 {[%emt 0:00:37]} 4. e5 {[%emt 0:00:10]} Nd5 {[%emt 0:00:09]} 5. Bc4 {[%emt 0:00:04]} d6 {[%emt 0:04:31]} 6. d4 {[%emt 0:00:09]} cxd4 {[%emt 0:11:58]} 7. cxd4 {[%emt 0:00:16]} dxe5 {[%emt 0:01:50]} 8. dxe5 {[%emt 0:04:59]} Be7 {[%emt 0:02:26]} 9. O-O {[%emt 0:00:44]} O-O {[%emt 0:00:26]} 10. Qe2 {[%emt 0:07:25]} Bd7 {[%emt 0:05:50]} 11. Rd1 {[%emt 0:05:53]} Bc6 {[%emt 0:01:41]} 12. Bd2 {[%emt 0:05:45]} Qc7 {[%emt 0:08:28]} 13. Bb3 {[%emt 0:16:02]} Rd8 {[%emt 0:20:16]} 14. Nc3 {[%emt 0:01:43]} Nxc3 {[%emt 0:01:03]} 15. Bxc3 {[%emt 0:00:18]} Rxd1+ {[%emt 0:00:51]} 16. Rxd1 {[%emt 0:00:44]} Bxf3 {[%emt 0:01:26]} 17. Qxf3 {[%emt 0:00:37]} Nc6 {[%emt 0:00:17]} 18. Qe3 {[%emt 0:22:39]} Rd8 {[%emt 0:05:12]} 19. Kf1 {[%emt 0:02:35]} g6 {[%emt 0:07:33]} 20. a3 {[%emt 0:03:31]} b5 {[%emt 0:06:38]} 21. Qe4 {[%emt 0:03:32]} Rb8 {[%emt 0:04:33]} 22. Rc1 {[%emt 0:06:08]} Qb6 {[%emt 0:09:58]} 23. g3 {[%emt 0:09:12]} b4 {[%emt 0:02:16]} 24. axb4 {[%emt 0:00:08]} Bxb4 {[%emt 0:01:04]} 25. Bxb4 {[%emt 0:01:56]} Nxb4 {[%emt 0:01:52]} 26. Kg2 {[%emt 0:02:32]} Na6 {[%emt 0:01:10]} 27. Rc6 {[%emt 0:00:28]} Qb7 {[%emt 0:00:21]} 28. Bc2 {[%emt 0:02:49]} Nb4 {[%emt 0:00:25]} 29. Rc3 {[%emt 0:01:44]} Nxc2 {[%emt 0:00:37]} 30. Qxb7 {[%emt 0:00:03]} Ne1+ {[%emt 0:00:05]} 31. Kf1 {[%emt 0:00:02]} Rxb7 {[%emt 0:00:05]} 32. b3 {[%emt 0:01:12]} Nc2 {[%emt 0:00:33]} 33. Rxc2 {[%emt 0:00:06]} Rxb3 {[%emt 0:00:05]} 34. Rc7 {[%emt 0:00:20]} Ra3 {[%emt 0:00:46]} 35. h4 {[%emt 0:00:25]} h6 {[%emt 0:00:25]} 36. Kg2 {[%emt 0:01:22]} g5 {[%emt 0:01:29]} 37. h5 {[%emt 0:01:05]} Ra4 {[%emt 0:00:10]} 38. Kf3 {[%emt 0:00:33]} Kg7 {[%emt 0:00:45]} 39. Rb7 {[%emt 0:00:37]} Ra5 {[%emt 0:00:50]} 40. Ke4 {[%emt 0:00:25]} Ra3 {[%emt 0:00:15]} 41. g4 {[%emt 0:10:43]} a5 {[%emt 0:17:31]} 42. Ra7 {[%emt 0:02:05]} a4 {[%emt 0:01:07]} 43. Ra8 {[%emt 0:03:36]} Ra1 {[%emt 0:01:10]} 44. Kf3 {[%emt 0:04:17]} a3 {[%emt 0:00:17]} 45. Kg2 {[%emt 0:02:43]} f5 {[%emt 0:03:09]} 46. exf6+ {[%emt 0:00:56]} Kxf6 {[%emt 0:00:08]} 47. Ra5 {[%emt 0:00:03]} Ke7 {[%emt 0:01:10]} 48. Ra6 {[%emt 0:00:10]} Kd7 {[%emt 0:03:49]} 49. Kf3 {[%emt 0:01:15]} Ke7 {[%emt 0:01:57]} 50. Kg2 {[%emt 0:00:07]} Kf7 {[%emt 0:00:16]} 51. Kh2 {[%emt 0:02:43]} Kf6 {[%emt 0:00:05]} 52. Ra5 {[%emt 0:00:00]} Ke7 {[%emt 0:00:07]} 53. Ra6 {[%emt 0:00:01]} Kd7 {[%emt 0:00:05]} 54. Kg2 {[%emt 0:00:30]} a2 {[%emt 0:02:58]} 55. f3 {[%emt 0:05:37]} e5 {[%emt 0:01:22]} 56. Ra7+ {[%emt 0:00:00]} Kc6 {[%emt 0:00:07]} 57. Ra6+ {[%emt 0:00:02]} Kb5 {[%emt 0:00:14]} 58. Ra8 {[%emt 0:00:13]} Kc4 {[%emt 0:00:27]} 59. Ra7 {[%emt 0:00:18]} Kb3 {[%emt 0:00:47]} 60. Rb7+ {[%emt 0:00:03]} Kc3 {[%emt 0:00:05]} 61. Rc7+ {[%emt 0:00:28]} Kd3 {[%emt 0:00:07]} 62. Ra7 {[%emt 0:04:49]} Rc1 {[%emt 0:00:37]} 63. Ra3+ {[%emt 0:00:39]} Rc3 {[%emt 0:00:07]} 0-1

[Event "WYCC U18 Open 2019"]
[Site "Mumbai"]
[Date "2019.10.10"]
[Round "9.2"]
[White "Sargsyan, Shant"]
[Black "Gholami, Aryan"]
[Result "1-0"]
[ECO "D02"]
[WhiteElo "2580"]
[BlackElo "2554"]
[Annotator "ChessBase"]
[PlyCount "55"]
[EventDate "2019.10.02"]
[EventType "swiss"]
[EventCountry "IND"]
[SourceTitle "playchess.com"]
[Source "ChessBase"]
[SourceQuality "1"]
[TimeControl "40/5400+30:1800+30"]

1. d4 {[%emt 0:06:50]} d5 {[%emt 0:00:00]} 2. Nf3 {[%emt 0:00:42]} e6 {[%emt 0:00:00]} 3. c4 {[%emt 0:00:41]} a6 {[%emt 0:00:00]} 4. cxd5 {[%emt 0:00:37]} exd5 {[%emt 0:00:08]} 5. Nc3 {[%emt 0:00:07]} Nf6 {[%emt 0:01:57]} 6. Bg5 {[%emt 0:00:35]} Be6 {[%emt 0:02:17]} 7. Bxf6 {[%emt 0:01:15]} Qxf6 {[%emt 0:00:43]} 8. Qb3 {[%emt 0:00:06]} b5 {[%emt 0:00:44]} 9. a4 {[%emt 0:00:57]} b4 {[%emt 0:11:29]} 10. Nxd5 {[%emt 0:00:49]} Qd8 {[%emt 0:00:08]} 11. e4 {[%emt 0:00:11]} c6 {[%emt 0:00:14]} 12. Qe3 {[%emt 0:00:47]} cxd5 {[%emt 0:04:36]} 13. exd5 {[%emt 0:00:06]} Qxd5 {[%emt 0:00:04]} 14. Rc1 {[%emt 0:00:43]} Be7 {[%emt 0:05:41]} 15. Bd3 {[%emt 0:01:06]} Qd7 {[%emt 0:20:36]} 16. Be4 {[%emt 0:00:53]} Qa7 {[%emt 0:00:11]} 17. Qf4 {[%emt 0:12:12]} Nd7 {[%emt 0:07:36]} 18. d5 {[%emt 0:02:41]} g5 {[%emt 0:07:36]} 19. Nxg5 {[%emt 0:26:24]} Bxg5 {[%emt 0:00:46]} 20. Qxg5 {[%emt 0:00:07]} Qd4 {[%emt 0:00:13]} 21. O-O {[%emt 0:01:26]} Qxe4 {[%emt 0:03:05]} 22. dxe6 {[%emt 0:00:37]} fxe6 {[%emt 0:00:11]} 23. Rfe1 {[%emt 0:00:43]} Qg6 {[%emt 0:00:54]} 24. Qd5 {[%emt 0:00:12]} Ke7 {[%emt 0:00:09]} 25. Rc6 {[%emt 0:01:27]} Rae8 {[%emt 0:05:20]} 26. Rcxe6+ {[%emt 0:00:21]} Kd8 {[%emt 0:00:06]} 27. Qa8+ {[%emt 0:00:05]} Kc7 {[%emt 0:00:07]} 28. Rc1+ {[%emt 0:00:07]} 1-0

[Event "WYCC U18 Open 2019"]
[Site "Mumbai"]
[Date "2019.10.10"]
[Round "9.3"]
[White "Mitrabha, Guha"]
[Black "Blohberger, Felix"]
[Result "1/2-1/2"]
[ECO "D71"]
[WhiteElo "2434"]
[BlackElo "2448"]
[Annotator "ChessBase"]
[PlyCount "40"]
[EventDate "2019.10.02"]
[EventType "swiss"]
[EventCountry "IND"]
[SourceTitle "playchess.com"]
[Source "ChessBase"]
[SourceQuality "1"]
[TimeControl "40/5400+30:1800+30"]

1. d4 {[%emt 0:05:54]} Nf6 {[%emt 0:00:00]} 2. c4 {[%emt 0:00:07]} g6 {[%emt 0:00:00]} 3. g3 {[%emt 0:00:11]} Bg7 {[%emt 0:00:00]} 4. Bg2 {[%emt 0:00:06]} O-O {[%emt 0:00:00]} 5. Nc3 {[%emt 0:00:04]} Nc6 {[%emt 0:00:18]} 6. Nf3 {[%emt 0:00:46]} d5 {[%emt 0:00:29]} 7. Ne5 {[%emt 0:02:25]} dxc4 {[%emt 0:00:45]} 8. Nxc6 {[%emt 0:00:28]} bxc6 {[%emt 0:00:06]} 9. Bxc6 {[%emt 0:00:06]} Rb8 {[%emt 0:00:11]} 10. Bg2 {[%emt 0:00:12]} Bb7 {[%emt 0:20:40]} 11. e4 {[%emt 0:01:28]} e5 {[%emt 0:04:48]} 12. d5 {[%emt 0:00:37]} c6 {[%emt 0:01:38]} 13. O-O {[%emt 0:00:45]} cxd5 {[%emt 0:00:54]} 14. exd5 {[%emt 0:00:05]} Qa5 {[%emt 0:08:37]} 15. Bd2 {[%emt 0:18:41]} Rfd8 {[%emt 0:09:17]} 16. Re1 {[%emt 0:14:02]} Qc7 {[%emt 0:05:18]} 17. Be3 {[%emt 0:06:59]} Qa5 {[%emt 0:06:29]} 18. Bd2 {[%emt 0:09:47]} Qc7 {[%emt 0:01:04]} 19. Be3 {[%emt 0:11:58]} Qa5 {[%emt 0:01:26]} 20. Bd2 {[%emt 0:01:58]} Qc7 {[%emt 0:00:07]} 1/2-1/2

[Event "WYCC U18 Open 2019"]
[Site "Mumbai"]
[Date "2019.10.10"]
[Round "9.4"]
[White "Pultinevicius, Paulius"]
[Black "Gazik, Viktor"]
[Result "1-0"]
[ECO "A81"]
[WhiteElo "2503"]
[BlackElo "2546"]
[Annotator "ChessBase"]
[PlyCount "83"]
[EventDate "2019.10.02"]
[EventType "swiss"]
[EventCountry "IND"]
[SourceTitle "playchess.com"]
[Source "ChessBase"]
[SourceQuality "1"]
[TimeControl "40/5400+30:1800+30"]

1. d4 {[%emt 0:00:12]} f5 {[%emt 0:00:00]} 2. g3 {[%emt 0:01:07]} Nf6 {[%emt 0:00:00]} 3. Bg2 {[%emt 0:00:59]} g6 {[%emt 0:00:00]} 4. Nh3 {[%emt 0:01:39]} Bg7 {[%emt 0:01:15]} 5. Nf4 {[%emt 0:00:42]} O-O {[%emt 0:05:49]} 6. h4 {[%emt 0:01:10]} Nc6 {[%emt 0:03:02]} 7. d5 {[%emt 0:01:39]} Ne5 8. Nc3 {[%emt 0:02:28]} c6 {[%emt 0:05:43]} 9. e4 {[%emt 0:04:35]} fxe4 {[%emt 0:13:01]} 10. Nxe4 {[%emt 0:00:16]} Nxd5 {[%emt 0:02:29]} 11. Nxd5 {[%emt 0:00:31]} cxd5 {[%emt 0:00:06]} 12. Qxd5+ {[%emt 0:01:07]} e6 {[%emt 0:00:05]} 13. Qd1 {[%emt 0:09:14]} d5 {[%emt 0:01:19]} 14. Nc3 {[%emt 0:00:39]} Qf6 {[%emt 0:16:08]} 15. O-O {[%emt 0:05:08]} Bd7 {[%emt 0:00:04]} 16. Qe2 {[%emt 0:01:35]} Bc6 {[%emt 0:07:31]} 17. Bf4 {[%emt 0:07:00]} Nc4 {[%emt 0:03:54]} 18. Rab1 {[%emt 0:20:46]} Rae8 {[%emt 0:14:17]} 19. Rfe1 {[%emt 0:15:56]} Qd8 {[%emt 0:07:02]} 20. Bg5 {[%emt 0:02:45]} Qa5 {[%emt 0:04:07]} 21. Qg4 {[%emt 0:08:21]} Nxb2 {[%emt 0:07:10]} 22. Ne2 {[%emt 0:01:09]} Nc4 {[%emt 0:02:35]} 23. Nd4 {[%emt 0:02:03]} h5 {[%emt 0:02:47]} 24. Qd1 {[%emt 0:01:21]} Qc5 {[%emt 0:01:35]} 25. Nxe6 {[%emt 0:01:57]} Qxf2+ {[%emt 0:00:43]} 26. Kh1 {[%emt 0:00:23]} Bc3 {[%emt 0:01:38]} 27. Rf1 {[%emt 0:02:58]} Qxg3 {[%emt 0:00:25]} 28. Rxf8+ {[%emt 0:01:11]} Rxf8 {[%emt 0:00:01]} 29. Qd3 {[%emt 0:01:18]} Qxd3 {[%emt 0:00:55]} 30. cxd3 {[%emt 0:00:05]} Nd6 {[%emt 0:00:41]} 31. Nxf8 {[%emt 0:00:31]} Kxf8 {[%emt 0:00:01]} 32. Bh3 {[%emt 0:02:53]} Kg7 {[%emt 0:00:37]} 33. Bf4 {[%emt 0:01:11]} Nb5 {[%emt 0:00:37]} 34. a4 {[%emt 0:01:04]} Na3 {[%emt 0:00:19]} 35. Rb3 {[%emt 0:00:17]} d4+ {[%emt 0:00:57]} 36. Bg2 {[%emt 0:00:13]} Nc2 {[%emt 0:00:04]} 37. Bxc6 {[%emt 0:00:40]} bxc6 {[%emt 0:00:02]} 38. Rb7+ {[%emt 0:00:27]} Kf6 {[%emt 0:01:11]} 39. Rxa7 {[%emt 0:00:18]} Nb4 {[%emt 0:00:21]} 40. a5 {[%emt 0:01:08]} c5 {[%emt 0:00:53]} 41. Rc7 {[%emt 0:31:03]} Nd5 {[%emt 0:06:32]} 42. Rc6+ {[%emt 0:00:00]} 1-0

[Event "WYCC U18 Open 2019"]
[Site "Mumbai"]
[Date "2019.10.10"]
[Round "9.5"]
[White "Davtyan, Artur"]
[Black "Sydoryka, Vladyslav"]
[Result "1/2-1/2"]
[ECO "A43"]
[WhiteElo "2418"]
[BlackElo "2247"]
[Annotator "NA"]
[PlyCount "105"]
[EventDate "2019.10.02"]
[EventType "swiss"]
[EventCountry "IND"]
[SourceTitle "playchess.com"]
[Source "ChessBase"]
[SourceQuality "1"]
[TimeControl "40/5400+30:1800+30"]

1. d4 {[%emt 0:00:00]} Nf6 {[%emt 0:00:00]} 2. Nf3 {[%emt 0:01:27]} c5 {[%emt 0:00:00]} 3. d5 {[%emt 0:00:04]} b5 {[%emt 0:00:00]} 4. Bg5 {[%emt 0:01:25]} Qb6 {[%emt 0:00:06]} 5. c3 {[%emt 0:04:54]} Bb7 {[%emt 0:12:05]} 6. Bxf6 {[%emt 0:00:15] A43: Schmid Benoni} exf6 {[%emt 0:00:36]} 7. e4 {[%emt 0:02:24]} Be7 $146 {[%emt 0:02:14]} ({Predecessor:} 7... c4 8. Be2 Na6 9. a4 Nc5 10. axb5 Nxe4 11. O-O Bc5 12. Bxc4 Bxf2+ 13. Kh1 {0-1 (50) Ly,M (2402)-Nguyen,N (2662) Ho Chi Minh City 2012}) 8. a4 {[%emt 0:01:35]} b4 {[%emt 0:16:48]} 9. Nbd2 {[%emt 0:08:05]} Ba6 {[%emt 0:01:25]} 10. Bc4 {[%emt 0:22:54]} Bxc4 {[%emt 0:09:20]} 11. Nxc4 {[%emt 0:00:18]} Qa6 {[%emt 0:00:07]} 12. Qe2 {[%emt 0:13:26]} bxc3 {[%emt 0:07:39]} 13. bxc3 {[%emt 0:00:06]} O-O {[%emt 0:00:41]} 14. O-O {[%emt 0:00:38]} d6 {[%emt 0:01:02]} 15. Rfb1 {[%emt 0:00:10]} Nd7 {[%emt 0:00:09]} 16. Rb5 {[%emt 0:00:12]} Bd8 {[%emt 0:08:12]} 17. Nfd2 {[%emt 0:12:06]} Bc7 {[%emt 0:03:17]} 18. Nb3 {[%emt 0:00:37]} Rab8 {[%emt 0:04:58]} 19. Nca5 {[%emt 0:05:14]} Ne5 $14 {[%emt 0:05:47]} 20. c4 {[%emt 0:05:22]} Rbe8 {[%emt 0:03:45]} 21. Nb7 {[%emt 0:05:40]} Re7 {[%emt 0:04:05]} 22. Qc2 {[%emt 0:04:35]} Rfe8 {[%emt 0:02:38]} 23. Nd2 {[%emt 0:02:06]} Ng6 {[%emt 0:03:51]} 24. g3 {[%emt 0:00:21]} Rd7 {[%emt 0:01:25]} 25. a5 {[%emt 0:02:10]} Bb6 {[%emt 0:03:12]} 26. Qa4 {[%emt 0:00:38]} Qxb7 {[%emt 0:01:41]} 27. Rab1 {[%emt 0:02:07]} Qa8 {[%emt 0:03:49]} 28. Rxb6 {[%emt 0:04:36]} axb6 {[%emt 0:00:23]} 29. Qxd7 {[%emt 0:00:02]} Ne5 {[%emt 0:01:07]} 30. Qb5 {[%emt 0:01:00]} bxa5 {[%emt 0:00:27]} 31. Ra1 {[%emt 0:00:15]} Qc8 {[%emt 0:03:41]} 32. Rxa5 {[%emt 0:00:15]} Rf8 {[%emt 0:00:57]} 33. f3 {[%emt 0:00:58]} f5 34. Qb3 {[%emt 0:00:13]} fxe4 {[%emt 0:00:31]} 35. Nxe4 {[%emt 0:00:01]} Qc7 {[%emt 0:00:45]} 36. Rb5 {[%emt 0:00:23]} h6 {[%emt 0:00:21]} 37. Kg2 {[%emt 0:00:14]} f5 {[%emt 0:00:13]} 38. Nf2 {[%emt 0:00:58]} f4 {[%emt 0:00:16]} 39. Rb7 {[%emt 0:00:29]} Qa5 {[%emt 0:01:08]} 40. Re7 {[%emt 0:00:58]} Ng6 {[%emt 0:00:45]} 41. Re6 {[%emt 0:30:33]} Ne5 {[%emt 0:30:22]} 42. gxf4 {[%emt 0:00:00]} Rxf4 {[%emt 0:00:00]} 43. Re8+ {[%emt 0:00:00]} Kh7 {[%emt 0:00:00]} 44. Qb1+ {[%emt 0:00:00]} g6 {[%emt 0:00:00]} 45. Qb7+ {[%emt 0:00:00]} Rf7 {[%emt 0:00:00]} 46. Re7 {[%emt 0:00:00]} Kg7 {[%emt 0:00:00]} 47. Rxf7+ {[%emt 0:00:00]} Nxf7 {[%emt 0:00:00]} 48. Qb2+ {[%emt 0:00:00]} Kf8 {[%emt 0:00:00]} 49. Ne4 {[%emt 0:01:24]} Qe1 {[%emt 0:00:00]} 50. Qb8+ {[%emt 0:01:49]} Kg7 {[%emt 0:00:00]} 51. Qb2+ {[%emt 0:00:01]} Kf8 {[%emt 0:00:00]} 52. Qb8+ {[%emt 0:00:29]} Kg7 {[%emt 0:00:00]} 53. Qb2+ {[%emt 0:00:16]} 1/2-1/2

[Event "WYCC U18 Open 2019"]
[Site "Mumbai"]
[Date "2019.10.10"]
[Round "9.6"]
[White "Arjun Kalyan"]
[Black "Chylewski, Patryk"]
[Result "1-0"]
[ECO "C50"]
[WhiteElo "2483"]
[BlackElo "2348"]
[Annotator "ChessBase"]
[PlyCount "61"]
[EventDate "2019.10.02"]
[EventType "swiss"]
[EventCountry "IND"]
[SourceTitle "playchess.com"]
[Source "ChessBase"]
[SourceQuality "1"]
[TimeControl "40/5400+30:1800+30"]

1. e4 {[%emt 0:00:00]} e5 {[%emt 0:00:00]} 2. Nf3 {[%emt 0:00:01]} Nc6 {[%emt 0:00:00]} 3. Bc4 {[%emt 0:00:15]} Bc5 {[%emt 0:00:00]} 4. O-O {[%emt 0:00:16]} Nf6 {[%emt 0:00:03]} 5. d3 {[%emt 0:00:06]} d6 {[%emt 0:00:09]} 6. c3 {[%emt 0:00:17]} a6 {[%emt 0:01:07]} 7. a4 {[%emt 0:00:23]} Ba7 {[%emt 0:00:10]} 8. Re1 {[%emt 0:00:30]} h6 {[%emt 0:03:35]} 9. Nbd2 {[%emt 0:00:44]} O-O {[%emt 0:00:09]} 10. h3 {[%emt 0:00:28]} Re8 {[%emt 0:00:56]} 11. b4 {[%emt 0:01:38]} Be6 {[%emt 0:03:15]} 12. Bxe6 {[%emt 0:00:22]} Rxe6 {[%emt 0:00:26]} 13. Qc2 {[%emt 0:00:13]} Re8 {[%emt 0:04:53]} 14. Nf1 {[%emt 0:04:20]} b5 {[%emt 0:11:29]} 15. Ng3 {[%emt 0:08:55]} d5 {[%emt 0:06:11]} 16. Nf5 {[%emt 0:18:12]} Qd7 {[%emt 0:01:20]} 17. Bxh6 {[%emt 0:15:04]} gxh6 {[%emt 0:03:33]} 18. Qc1 {[%emt 0:00:25]} dxe4 {[%emt 0:07:59]} 19. dxe4 {[%emt 0:00:46]} Nh7 {[%emt 0:09:11]} 20. Qxh6 {[%emt 0:00:59]} f6 {[%emt 0:00:08]} 21. Qg6+ {[%emt 0:01:40]} Kf8 {[%emt 0:01:05]} 22. Qh6+ {[%emt 0:04:05]} Kg8 {[%emt 0:00:05]} 23. Qg6+ {[%emt 0:00:05]} Kf8 {[%emt 0:00:04]} 24. Red1 {[%emt 0:00:41]} Qf7 {[%emt 0:00:10]} 25. Qxf7+ {[%emt 0:01:02]} Kxf7 {[%emt 0:00:05]} 26. Rd7+ {[%emt 0:00:02]} Kg8 {[%emt 0:12:11]} 27. Rxc7 {[%emt 0:01:17]} Nd8 {[%emt 0:03:28]} 28. axb5 {[%emt 0:01:12]} Ne6 {[%emt 0:00:33]} 29. Rb7 {[%emt 0:01:10]} Reb8 {[%emt 0:01:24]} 30. bxa6 {[%emt 0:04:03]} Bb6 {[%emt 0:00:11]} 31. Rd1 {[%emt 0:00:54]} 1-0

[Event "WYCC U18 Open 2019"]
[Site "Mumbai"]
[Date "2019.10.10"]
[Round "9.7"]
[White "Iniyan, P."]
[Black "Stoleriu, George"]
[Result "1/2-1/2"]
[ECO "E53"]
[WhiteElo "2509"]
[BlackElo "2351"]
[Annotator "ChessBase"]
[PlyCount "66"]
[EventDate "2019.10.02"]
[EventType "swiss"]
[EventCountry "IND"]
[SourceTitle "playchess.com"]
[Source "ChessBase"]
[SourceQuality "1"]
[TimeControl "40/5400+30:1800+30"]

1. d4 e6 2. c4 Nf6 3. Nc3 Bb4 4. e3 O-O 5. Bd3 d5 6. Nf3 c5 7. O-O b6 8. a3 Bxc3 9. bxc3 Ba6 10. cxd5 exd5 11. Bxa6 Nxa6 12. Qd3 Qc8 13. Nd2 Re8 14. f3 Qb7 15. Bb2 Re6 16. Rae1 Rae8 17. e4 c4 18. Qc2 dxe4 19. fxe4 Nxe4 20. Nxc4 Nf6 21. Rxe6 Rxe6 22. Ne5 b5 23. a4 bxa4 24. c4 Rb6 25. Ba1 Qe4 26. Qxa4 Rb1 27. Qa2 Rxf1+ 28. Kxf1 Nb4 29. Qb3 a5 30. Bb2 Qb1+ 31. Ke2 Qe4+ 32. Kf1 Qb1+ 33. Ke2 Qe4+ 1/2-1/2

[Event "WYCC U18 Open 2019"]
[Site "Mumbai"]
[Date "2019.10.10"]
[Round "9.8"]
[White "Aditya Mittal"]
[Black "Raghunandan, Kaumandur Srihari"]
[Result "1-0"]
[ECO "D43"]
[WhiteElo "2430"]
[BlackElo "2449"]
[Annotator "NA"]
[PlyCount "61"]
[EventDate "2019.10.02"]
[EventType "swiss"]
[EventCountry "IND"]
[SourceTitle "playchess.com"]
[Source "ChessBase"]
[SourceQuality "1"]
[TimeControl "40/5400+30:1800+30"]

1. d4 {[%emt 0:00:00]} d5 {[%emt 0:00:09]} 2. c4 {[%emt 0:00:00]} c6 {[%emt 0:00:24]} 3. Nf3 {[%emt 0:00:00]} Nf6 {[%emt 0:00:08]} 4. Nc3 {[%emt 0:00:00]} e6 {[%emt 0:00:10]} 5. Bg5 {[%emt 0:00:11]} h6 {[%emt 0:00:33]} 6. Bh4 {[%emt 0:00:05]} dxc4 {[%emt 0:00:09]} 7. e4 {[%emt 0:00:04]} g5 {[%emt 0:00:06]} 8. Bg3 {[%emt 0:00:04]} b5 {[%emt 0:00:08]} 9. Be2 {[%emt 0:00:06]} Bb7 {[%emt 0:00:18]} 10. Qc2 {[%emt 0:00:11]} Nh5 {[%emt 0:05:46]} 11. Be5 {[%emt 0:00:30]} f6 {[%emt 0:17:43]} 12. Nd2 {[%emt 0:00:41]} Ng7 {[%emt 0:16:24]} 13. Bg3 {[%emt 0:00:02]} Nd7 {[%emt 0:23:23]} 14. h4 {[%emt 0:19:19]} gxh4 {[%emt 0:04:51]} 15. Rxh4 {[%emt 0:03:29]} Be7 {[%emt 0:03:31]} 16. d5 {[%emt 0:19:40]} f5 {[%emt 0:03:12]} 17. dxe6 {[%emt 0:09:03]} Nc5 {[%emt 0:07:12]} 18. Rh3 {[%emt 0:09:23]} Ngxe6 {[%emt 0:03:37]} 19. Be5 {[%emt 0:00:20]} Bf6 {[%emt 0:00:46]} 20. exf5 {[%emt 0:00:36]} Nd4 {[%emt 0:04:27]} 21. Bxd4 {[%emt 0:01:23]} Qxd4 {[%emt 0:00:18]} 22. Re3+ {[%emt 0:03:15]} Kf8 {[%emt 0:00:38]} 23. Nde4 {[%emt 0:07:43]} Nxe4 {[%emt 0:01:57]} 24. Rxe4 {[%emt 0:00:36]} Qb6 {[%emt 0:02:55]} 25. Re6 {[%emt 0:01:46]} Bd4 {[%emt 0:01:47]} 26. O-O-O {[%emt 0:01:01]} Rd8 {[%emt 0:01:54]} 27. f6 {[%emt 0:01:39]} Qc7 {[%emt 0:00:27]} 28. Rxd4 {[%emt 0:12:05]} Rxd4 {[%emt 0:00:06]} 29. Bh5 {[%emt 0:00:02]} Rd8 {[%emt 0:00:43]} 30. Qg6 {[%emt 0:00:17]} Qd7 {[%emt 0:00:41]} 31. Rd6 {[%emt 0:00:08]} 1-0